fUST/lending_fUST_20250806
["ID","MTS","AMOUNT","RATE_DAILY","PERIOD"]
[377671743,1754484638661,-527.46908335,0.00028788,2]
[377671744,1754484638670,-461.26544088,0.00028788,2]
[377671745,1754484638679,-160.0,0.00028788,2]
[377671746,1754484638688,-160.0,0.00028788,2]
[377671747,1754484638700,-231.78005385,0.00028788,2]
[377671748,1754484638709,-160.0,0.00028788,2]
[377671749,1754484638721,-155.3297504,0.00028796,2]
[377671750,1754484638730,-1000.0,0.00028796,2]
[377671751,1754484638741,-1000.0,0.00028796,2]
[377671752,1754484638751,-213.09787814,0.00028796,2]
[377671753,1754484638762,-151.0,0.000289,18]
[377671754,1754484638774,-150.0,0.00028973,5]
[377671756,1754484638784,-74137.9007988,0.00028978,2]
[377671758,1754484638793,-435646.78093651,0.00028998,2]
[377671760,1754484638803,-160.0,0.00029,10]
[377671762,1754484638813,-874.76776494,0.00029,2]
[377671764,1754484638823,-820.34,0.00029,7]
[377671766,1754484638832,-1880.85,0.00029,7]
[377671768,1754484638842,-1658.87,0.00029,7]
[377671770,1754484638852,-888.68,0.00029,2]
[377671771,1754484638862,-171.49866874,0.00029,2]
[377671772,1754484638871,-151.0,0.000291,16]
[377671773,1754484638879,-681.01,0.000291,2]
[377671774,1754484638889,-2251.38072449,0.00029133,11]
[377671775,1754484638898,-2883.11,0.00029182,2]
[377671776,1754484638907,-151.0,0.000292,17]
[377671777,1754484638916,-3000.0,0.00029312,5]
[377671778,1754484638925,-151.0,0.000294,13]
[377671779,1754484638935,-250.0,0.00029425,2]
[377671780,1754484638944,-250.0,0.00029521,5]
[377671781,1754484638955,-151.0,0.000296,20]
[377671782,1754484638964,-2667.13996756,0.0002961,2]
[377671783,1754484638976,-336.18,0.0002964,15]
[377671784,1754484638986,-336.18,0.0002974,15]
[377671785,1754484638995,-500.0,0.00029773,5]
[377671786,1754484639004,-336.18,0.0002984,15]
[377671787,1754484639014,-3065.96306894,0.0002986,5]
[377671788,1754484639023,-133386.16870465,0.000299,2]
[377671789,1754484639034,-340.0,0.00029929,2]
[377671790,1754484639043,-336.18,0.0002994,15]
[377671791,1754484639053,-1437.374485,0.0003,8]
[377671792,1754484639062,-336.18,0.0003004,15]
[377671793,1754484639072,-455.66660422,0.00030068,5]
[377671794,1754484639081,-1430.61,0.0003008,60]
[377671795,1754484639090,-2251.38072449,0.00030084,13]
[377671796,1754484639100,-150.0,0.00030137,3]
[377671797,1754484639109,-336.18,0.0003014,15]
[377671798,1754484639119,-336.18,0.0003024,15]
[377671799,1754484639129,-160.0,0.000303,7]
[377671800,1754484639138,-502.53353566,0.00030321,5]
[377671801,1754484639147,-336.18,0.0003034,15]
[377671802,1754484639156,-336.18,0.0003044,15]
[377671803,1754484639166,-6000.0,0.00030489,3]
[377671804,1754484639175,-1000.0,0.000305,8]
[377671805,1754484639184,-336.18,0.0003054,15]
[377671806,1754484639194,-336.18,0.0003064,15]
[377671807,1754484639202,-300.0,0.00030716,2]
[377671808,1754484639212,-151.0,0.00030716,2]
[377671809,1754484639222,-300.0,0.00030716,2]
[377671810,1754484639231,-151.0,0.00030716,2]
[377671811,1754484639241,-151.0,0.00030716,2]
[377671812,1754484639250,-307.56471654,0.00030716,2]
[377671813,1754484639260,-151.0,0.00030716,2]
[377671814,1754484639269,-151.0,0.00030716,2]
[377671815,1754484639279,-151.0,0.00030716,2]
[377671816,1754484639288,-151.0,0.00030716,2]
[377671817,1754484639297,-151.0,0.00030716,2]
[377671818,1754484639307,-151.0,0.00030716,2]
[377671819,1754484639316,-151.0,0.00030716,2]
[377671820,1754484639325,-151.0,0.00030716,2]
[377671821,1754484639334,-151.0,0.00030716,2]
[377671822,1754484639344,-250.0,0.00030716,2]
[377671823,1754484639353,-250.0,0.00030716,2]
[377671824,1754484639363,-256.21292639,0.00030716,2]
[377671825,1754484639372,-151.0,0.00030716,2]
[377671826,1754484639381,-151.0,0.00030716,2]
[377671827,1754484639390,-151.0,0.00030716,2]
[377671828,1754484639399,-336.18,0.0003074,15]
[377671829,1754484639409,-500.0,0.00030768,2]
[377671830,1754484639418,-200.0,0.00030788,15]
[377671831,1754484639431,-200.0,0.00030788,15]
[377671832,1754484639441,-300.0,0.00030788,15]
[377671833,1754484639450,-336.18,0.0003084,15]
[377671834,1754484639460,-2667.13996756,0.00030904,2]
[377671835,1754484639471,-336.18,0.0003094,15]
[377671836,1754484639480,-1363.4,0.00030979,7]
[377671837,1754484639490,-461.26544088,0.00030979,7]
[377671838,1754484639500,-216.47163855,0.00030979,7]
[377671839,1754484639510,-6000.0,0.00030986,3]
[377671840,1754484639519,-160.0,0.00030986,3]
[377671841,1754484639529,-461.26544088,0.00030986,3]
[377671842,1754484639538,-160.0,0.00030986,3]
[377671843,1754484639547,-216.47163855,0.00030986,3]
[377671844,1754484639556,-842.45170444,0.00030986,3]
[377671845,1754484639566,-12657.93264304,0.00030986,3]
[377671846,1754484639575,-527.46908335,0.00030986,3]
[377671847,1754484639585,-461.26544088,0.0003099,3]
[377671848,1754484639594,-1658.87,0.00031,7]
[377671849,1754484639603,-1000.0,0.00031,8]
[377671850,1754484639613,-2251.38072449,0.00031034,15]
[377671851,1754484639622,-336.18,0.0003104,15]
[377671852,1754484639632,-500.14610552,0.00031056,2]
[377671853,1754484639641,-1880.85,0.000311,7]
[377671854,1754484639650,-888.68,0.000311,2]
[377671855,1754484639660,-336.18,0.0003114,15]
[377671856,1754484639670,-336.18,0.0003124,15]
[377671857,1754484639680,-820.34,0.000313,7]
[377671858,1754484639689,-205.027795,0.00031338,2]
[377671859,1754484639702,-336.18,0.0003134,15]
[377671860,1754484639712,-6000.0,0.00031382,3]
[377671861,1754484639723,-336.18,0.0003144,15]
[377671862,1754484639733,-1000.0,0.000315,8]
[377671863,1754484639743,-336.18,0.0003154,15]
[377671864,1754484639752,-336.18,0.0003164,15]
[377671865,1754484639762,-336.18,0.0003174,15]
[377671866,1754484639771,-336.18,0.0003184,15]
[377671867,1754484639781,-336.18,0.0003194,15]
[377671868,1754484639791,-2251.38072449,0.00031985,17]
[377671869,1754484639802,-10002.08022503,0.00032,5]
[377671870,1754484639812,-1000.0,0.00032,8]
[377671871,1754484639821,-336.18,0.0003204,15]
[377671872,1754484639831,-151.0,0.00032085,2]
[377671873,1754484639840,-336.18,0.0003214,15]
[377671874,1754484639849,-8666.9345898,0.00032198,2]
[377671875,1754484639859,-2667.13996756,0.00032198,2]
[377671876,1754484639868,-336.18,0.0003224,15]
[377671877,1754484639878,-151.0,0.00032298,7]
[377671878,1754484639887,-151.0,0.00032298,7]
[377671879,1754484639897,-2320.21600282,0.00032298,2]
[377671880,1754484639906,-241.0,0.00032298,120]
[377671881,1754484639916,-156.6,0.00032298,2]
[377671882,1754484639926,-560.24968323,0.00032298,2]
[377671883,1754484639936,-6396.0,0.00032298,5]
[377671884,1754484639945,-5803.29081229,0.00032298,5]
[377671885,1754484639955,-179.36013227,0.00032298,2]
[377671886,1754484639964,-336.83274593,0.00032298,2]
[377671887,1754484639978,-460.0,0.00032298,120]
[377671888,1754484639987,-460.0,0.00032298,120]
[377671889,1754484639997,-460.0,0.00032298,120]
[377671890,1754484640006,-460.0,0.00032298,120]
[377671891,1754484640015,-460.0,0.00032298,120]
[377671892,1754484640025,-532.28906323,0.00032298,120]
[377671893,1754484640034,-460.0,0.00032298,120]
[377671894,1754484640043,-460.0,0.00032298,120]
[377671895,1754484640053,-460.0,0.00032298,120]
[377671896,1754484640063,-460.0,0.00032298,120]
[377671897,1754484640072,-460.0,0.00032298,120]
[377671898,1754484640082,-460.0,0.00032298,120]
[377671899,1754484640091,-460.0,0.00032298,120]
[377671900,1754484640101,-460.0,0.00032298,120]
[377671901,1754484640111,-460.0,0.00032298,120]
[377671902,1754484640120,-460.0,0.00032298,120]
[377671903,1754484640130,-554.5046931,0.00032298,120]
[377671904,1754484640139,-441.40709837,0.00032298,120]
[377671905,1754484640148,-460.0,0.00032298,120]
[377671906,1754484640158,-460.0,0.00032298,120]
[377671907,1754484640167,-460.0,0.00032298,120]
[377671908,1754484640177,-460.0,0.00032298,120]
[377671909,1754484640186,-460.0,0.00032298,120]
[377671910,1754484640195,-460.0,0.00032298,120]
[377671911,1754484640204,-462.82856911,0.00032298,120]
[377671912,1754484640214,-460.0,0.00032298,120]
[377671913,1754484640226,-460.0,0.00032298,120]
[377671914,1754484640236,-460.0,0.00032298,120]
[377671915,1754484640245,-460.0,0.00032298,120]
[377671916,1754484640255,-460.0,0.00032298,120]
[377671917,1754484640264,-460.0,0.00032298,120]
[377671918,1754484640274,-460.0,0.00032298,120]
[377671919,1754484640284,-460.0,0.00032298,120]
[377671920,1754484640294,-460.0,0.00032298,120]
[377671921,1754484640303,-474.01514425,0.00032298,120]
[377671922,1754484640313,-460.0,0.00032298,120]
[377671923,1754484640323,-460.0,0.00032298,120]
[377671924,1754484640332,-460.0,0.00032298,120]
[377671925,1754484640341,-460.0,0.00032298,120]
[377671926,1754484640351,-460.0,0.00032298,120]
[377671927,1754484640360,-460.0,0.00032298,120]
[377671928,1754484640370,-460.0,0.00032298,120]
[377671930,1754484640379,-460.0,0.00032298,120]
[377671931,1754484640389,-460.0,0.00032298,120]
[377671932,1754484640398,-460.0,0.00032298,120]
[377671933,1754484640407,-460.0,0.00032298,120]
[377671934,1754484640416,-460.0,0.00032298,120]
[377671935,1754484640426,-460.0,0.00032298,120]
[377671936,1754484640435,-460.0,0.00032298,120]
[377671937,1754484640445,-462.27020802,0.00032298,120]
[377671938,1754484640454,-460.0,0.00032298,120]
[377671939,1754484640464,-460.0,0.00032298,120]
[377671940,1754484640476,-460.0,0.00032298,120]
[377671941,1754484640486,-299.8,0.00032298,120]
[377671942,1754484640495,-460.0,0.00032298,120]
[377671943,1754484640504,-460.0,0.00032298,120]
[377671944,1754484640514,-460.0,0.00032298,120]
[377671945,1754484640523,-460.0,0.00032298,120]
[377671946,1754484640532,-460.0,0.00032298,120]
[377671947,1754484640542,-460.0,0.00032298,120]
[377671948,1754484640551,-1000.0,0.00032298,120]
[377671949,1754484640561,-1104.82394083,0.00032298,120]
[377671950,1754484640571,-326.2130749,0.00032298,120]
[377671951,1754484640580,-460.0,0.00032298,120]
[377671952,1754484640722,-555.15179477,0.00032298,120]
[377671953,1754484640732,-438.04070802,0.00032298,120]
[377671954,1754484640742,-460.0,0.00032298,120]
[377671955,1754484640752,-460.0,0.00032298,120]
[377671956,1754484640762,-467.39538167,0.00032298,120]
[377671957,1754484640771,-460.0,0.00032298,120]
[377671958,1754484640783,-460.0,0.00032298,120]
[377671959,1754484640793,-460.0,0.00032298,120]
[377671960,1754484640802,-460.0,0.00032298,120]
[377671961,1754484640812,-460.0,0.00032298,120]
[377671962,1754484640821,-460.0,0.00032298,120]
[377671963,1754484640830,-460.0,0.00032298,120]
[377671964,1754484640839,-404.30451337,0.00032298,120]
[377671965,1754484640849,-460.0,0.00032298,120]
[377671966,1754484640859,-460.0,0.00032298,120]
[377671967,1754484640868,-460.0,0.00032298,120]
[377671968,1754484640877,-460.0,0.00032298,120]
[377671969,1754484640886,-460.0,0.00032298,120]
[377671970,1754484640896,-460.0,0.00032298,120]
[377671971,1754484640905,-460.0,0.00032298,120]
[377671972,1754484640915,-465.56058868,0.00032298,120]
[377671973,1754484640924,-460.0,0.00032298,120]
[377671974,1754484640933,-460.0,0.00032298,120]
[377671975,1754484640942,-460.0,0.00032298,120]
[377671976,1754484640951,-460.0,0.00032298,120]
[377671977,1754484640962,-460.0,0.00032298,120]
[377671978,1754484640973,-460.0,0.00032298,120]
[377671979,1754484640983,-460.0,0.00032298,120]
[377671980,1754484640992,-462.44,0.00032298,120]
[377671981,1754484641003,-467.50197866,0.00032298,120]
[377671982,1754484641013,-460.0,0.00032298,120]
[377671983,1754484641023,-460.0,0.00032298,120]
[377671984,1754484641033,-460.0,0.00032298,120]
[377671985,1754484641043,-460.0,0.00032298,120]
[377671986,1754484641053,-460.0,0.00032298,120]
[377671987,1754484641064,-460.0,0.00032298,120]
[377671988,1754484641074,-460.0,0.00032298,120]
[377671989,1754484641083,-460.0,0.00032298,120]
[377671990,1754484641093,-460.0,0.00032298,120]
[377671991,1754484641102,-460.0,0.00032298,120]
[377671992,1754484641114,-460.0,0.00032298,120]
[377671993,1754484641124,-460.0,0.00032298,120]
[377671994,1754484641133,-460.0,0.00032298,120]
[377671995,1754484641143,-460.0,0.00032298,120]
[377671996,1754484641152,-460.0,0.00032298,120]
[377671997,1754484641162,-460.0,0.00032298,120]
[377671998,1754484641171,-460.0,0.00032298,120]
[377671999,1754484641180,-460.0,0.00032298,120]
[377672000,1754484641190,-401.82,0.00032298,120]
[377672001,1754484641199,-460.0,0.00032298,120]
[377672002,1754484641210,-500.0,0.00032298,14]
[377672003,1754484641222,-500.0,0.00032298,14]
[377672004,1754484641231,-500.0,0.00032298,14]
[377672005,1754484641240,-500.0,0.00032298,14]
[377672006,1754484641250,-500.0,0.00032298,14]
[377672007,1754484641259,-500.0,0.00032298,14]
[377672008,1754484641268,-504.67334269,0.00032298,14]
[377672009,1754484641277,-460.0,0.00032298,120]
[377672010,1754484641286,-460.0,0.00032298,120]
[377672011,1754484641297,-460.0,0.00032298,120]
[377672012,1754484641309,-460.0,0.00032298,120]
[377672013,1754484641320,-460.0,0.00032298,120]
[377672014,1754484641330,-460.0,0.00032298,120]
[377672015,1754484641339,-460.0,0.00032298,120]
[377672016,1754484641348,-460.0,0.00032298,120]
[377672017,1754484641357,-460.0,0.00032298,120]
[377672018,1754484641367,-460.0,0.00032298,120]
[377672019,1754484641377,-460.0,0.00032298,120]
[377672020,1754484641386,-355.94023847,0.00032298,120]
[377672021,1754484641396,-460.0,0.00032298,120]
[377672022,1754484641405,-460.0,0.00032298,120]
[377672023,1754484641416,-460.0,0.00032298,120]
[377672024,1754484641427,-460.0,0.00032298,120]
[377672025,1754484641437,-606.41608819,0.00032298,120]
[377672026,1754484641447,-460.0,0.00032298,120]
[377672027,1754484641457,-460.0,0.00032298,120]
[377672028,1754484641466,-460.0,0.00032298,120]
[377672029,1754484641476,-460.0,0.00032298,120]
[377672030,1754484641485,-460.0,0.00032298,120]
[377672031,1754484641495,-460.0,0.00032298,120]
[377672032,1754484641504,-193.1,0.00032298,120]
[377672033,1754484641514,-460.0,0.00032298,120]
[377672034,1754484641523,-545.84589933,0.00032298,120]
[377672035,1754484641533,-464.19084399,0.00032298,120]
[377672036,1754484641543,-460.0,0.00032298,120]
[377672037,1754484641552,-460.0,0.00032298,120]
[377672038,1754484641562,-460.0,0.00032298,120]
[377672039,1754484641571,-460.0,0.00032298,120]
[377672040,1754484641581,-460.0,0.00032298,120]
[377672041,1754484641591,-460.0,0.00032298,120]
[377672042,1754484641601,-460.0,0.00032298,120]
[377672043,1754484641610,-460.0,0.00032298,120]
[377672044,1754484641620,-460.0,0.00032298,120]
[377672045,1754484641630,-460.0,0.00032298,120]
[377672046,1754484641640,-460.0,0.00032298,120]
[377672047,1754484641649,-460.0,0.00032298,120]
[377672048,1754484641659,-460.0,0.00032298,120]
[377672049,1754484641668,-460.0,0.00032298,120]
[377672050,1754484641677,-460.0,0.00032298,120]
[377672051,1754484641687,-460.0,0.00032298,120]
[377672052,1754484641697,-460.0,0.00032298,120]
[377672053,1754484641709,-460.0,0.00032298,120]
[377672054,1754484641720,-460.0,0.00032298,120]
[377672055,1754484641729,-460.0,0.00032298,120]
[377672056,1754484641739,-460.0,0.00032298,120]
[377672057,1754484641748,-460.0,0.00032298,120]
[377672058,1754484641757,-460.0,0.00032298,120]
[377672059,1754484641767,-460.0,0.00032298,120]
[377672060,1754484641776,-460.0,0.00032298,2]
[377672061,1754484641786,-460.0,0.00032298,2]
[377672062,1754484641795,-460.0,0.00032298,2]
[377672063,1754484641805,-461.47668574,0.00032298,2]
[377672064,1754484641815,-460.0,0.00032298,120]
[377672065,1754484641824,-460.0,0.00032298,120]
[377672066,1754484641834,-548.11537204,0.00032298,120]
[377672067,1754484641843,-353.0648171,0.00032298,120]
[377672068,1754484641853,-460.0,0.00032298,120]
[377672069,1754484641862,-460.0,0.00032298,120]
[377672070,1754484641871,-460.0,0.00032298,120]
[377672071,1754484641881,-460.0,0.00032298,120]
[377672072,1754484641891,-460.0,0.00032298,120]
[377672073,1754484641900,-460.0,0.00032298,120]
[377672074,1754484641910,-460.0,0.00032298,120]
[377672075,1754484641918,-153.72,0.00032298,120]
[377672076,1754484641928,-460.0,0.00032298,120]
[377672077,1754484641938,-460.0,0.00032298,120]
[377672078,1754484641947,-460.0,0.00032298,120]
[377672079,1754484641957,-460.0,0.00032298,120]
[377672080,1754484641967,-460.0,0.00032298,120]
[377672081,1754484641978,-460.0,0.00032298,120]
[377672082,1754484641987,-460.0,0.00032298,120]
[377672083,1754484641996,-460.0,0.00032298,120]
[377672084,1754484642005,-460.0,0.00032298,120]
[377672085,1754484642014,-460.0,0.00032298,120]
[377672086,1754484642023,-460.0,0.00032298,120]
[377672087,1754484642032,-460.0,0.00032298,120]
[377672088,1754484642042,-460.0,0.00032298,120]
[377672089,1754484642053,-460.0,0.00032298,120]
[377672090,1754484642062,-460.0,0.00032298,120]
[377672091,1754484642073,-460.0,0.00032298,120]
[377672092,1754484642083,-460.0,0.00032298,120]
[377672093,1754484642092,-460.0,0.00032298,120]
[377672094,1754484642102,-460.0,0.00032298,120]
[377672095,1754484642112,-461.75325383,0.00032298,120]
[377672096,1754484642121,-461.27303679,0.00032298,120]
[377672097,1754484642131,-460.0,0.00032298,120]
[377672098,1754484642141,-460.0,0.00032298,120]
[377672099,1754484642150,-460.0,0.00032298,120]
[377672100,1754484642158,-460.0,0.00032298,120]
[377672101,1754484642168,-460.0,0.00032298,120]
[377672102,1754484642177,-156.59,0.00032298,120]
[377672103,1754484642186,-460.0,0.00032298,120]
[377672104,1754484642196,-460.0,0.00032298,120]
[377672105,1754484642205,-460.0,0.00032298,120]
[377672106,1754484642215,-460.0,0.00032298,120]
[377672107,1754484642226,-460.0,0.00032298,120]
[377672108,1754484642236,-460.0,0.00032298,120]
[377672109,1754484642246,-460.0,0.00032298,120]
[377672110,1754484642255,-460.0,0.00032298,120]
[377672111,1754484642264,-460.0,0.00032298,120]
[377672112,1754484642275,-460.0,0.00032298,120]
[377672113,1754484642284,-460.0,0.00032298,120]
[377672114,1754484642294,-460.0,0.00032298,120]
[377672115,1754484642303,-460.0,0.00032298,120]
[377672116,1754484642312,-460.0,0.00032298,120]
[377672117,1754484642322,-364.17,0.00032298,120]
[377672118,1754484642331,-460.0,0.00032298,120]
[377672119,1754484642341,-460.0,0.00032298,120]
[377672120,1754484642350,-460.0,0.00032298,120]
[377672121,1754484642359,-460.0,0.00032298,120]
[377672122,1754484642368,-376.28,0.00032298,120]
[377672123,1754484642378,-462.14062436,0.00032298,5]
[377672124,1754484642388,-1027.02,0.00032298,3]
[377672125,1754484642397,-1027.02,0.00032298,3]
[377672126,1754484642407,-1027.02,0.00032298,3]
[377672127,1754484642416,-1027.02,0.00032298,3]
[377672128,1754484642425,-1027.02,0.00032298,3]
[377672129,1754484642434,-1027.02,0.00032298,3]
[377672130,1754484642444,-1027.02,0.00032298,3]
[377672131,1754484642453,-1027.02,0.00032298,3]
[377672132,1754484642462,-1027.02,0.00032298,3]
[377672133,1754484642474,-1027.02,0.00032298,3]
[377672134,1754484642484,-1027.02,0.00032298,3]
[377672135,1754484642494,-1027.02,0.00032298,3]
[377672136,1754484642503,-1027.02,0.00032298,3]
[377672137,1754484642513,-1027.02,0.00032298,3]
[377672138,1754484642522,-1027.02,0.00032298,3]
[377672139,1754484642532,-1027.02,0.00032298,3]
[377672140,1754484642541,-1027.02,0.00032298,3]
[377672141,1754484642551,-1027.02,0.00032298,3]
[377672142,1754484642560,-1027.02,0.00032298,3]
[377672143,1754484642569,-1027.02,0.00032298,3]
[377672144,1754484642579,-1027.02,0.00032298,3]
[377672145,1754484642588,-1027.02,0.00032298,3]
[377672146,1754484642598,-1027.02,0.00032298,3]
[377672147,1754484642607,-1027.19308439,0.00032298,3]
[377672148,1754484642617,-460.0,0.00032298,120]
[377672149,1754484642626,-460.0,0.00032298,120]
[377672150,1754484642635,-460.0,0.00032298,120]
[377672151,1754484642644,-195.69,0.00032298,120]
[377672152,1754484642653,-460.0,0.00032298,120]
[377672153,1754484642663,-460.0,0.00032298,120]
[377672154,1754484642672,-460.0,0.00032298,120]
[377672155,1754484642681,-460.0,0.00032298,120]
[377672156,1754484642691,-460.0,0.00032298,120]
[377672157,1754484642704,-460.0,0.00032298,120]
[377672158,1754484642713,-269.32958595,0.00032298,120]
[377672159,1754484642723,-460.0,0.00032298,120]
[377672160,1754484642732,-460.0,0.00032298,120]
[377672161,1754484642743,-460.0,0.00032298,120]
[377672163,1754484642752,-463.4653083,0.00032298,120]
[377672164,1754484642762,-460.0,0.00032298,120]
[377672166,1754484642770,-460.0,0.00032298,120]
[377672167,1754484642781,-462.46698713,0.00032298,120]
[377672168,1754484642791,-460.0,0.00032298,120]
[377672169,1754484642801,-460.0,0.00032298,120]
[377672170,1754484642810,-460.0,0.00032298,120]
[377672171,1754484642819,-460.0,0.00032298,120]
[377672172,1754484642828,-460.0,0.00032298,120]
[377672173,1754484642837,-466.0353807,0.00032298,120]
[377672174,1754484642847,-460.0,0.00032298,120]
[377672175,1754484642856,-460.0,0.00032298,120]
[377672176,1754484642866,-460.0,0.00032298,120]
[377672177,1754484642875,-460.0,0.00032298,120]
[377672178,1754484642885,-460.0,0.00032298,120]
[377672179,1754484642893,-460.0,0.00032298,120]
[377672180,1754484642902,-460.0,0.00032298,120]
[377672181,1754484642912,-460.0,0.00032298,120]
[377672182,1754484642922,-460.0,0.00032298,120]
[377672183,1754484642931,-460.0,0.00032298,120]
[377672184,1754484642939,-460.0,0.00032298,120]
[377672185,1754484642948,-460.0,0.00032298,120]
[377672186,1754484642957,-460.0,0.00032298,120]
[377672187,1754484642968,-460.0,0.00032298,120]
[377672188,1754484642978,-460.0,0.00032298,120]
[377672189,1754484642988,-460.0,0.00032298,120]
[377672190,1754484642997,-460.0,0.00032298,120]
[377672191,1754484643006,-460.0,0.00032298,120]
[377672192,1754484643016,-460.0,0.00032298,120]
[377672193,1754484643025,-460.0,0.00032298,120]
[377672194,1754484643035,-460.0,0.00032298,120]
[377672195,1754484643044,-554.68361234,0.00032298,120]
[377672196,1754484643054,-460.0,0.00032298,120]
[377672197,1754484643063,-460.0,0.00032298,120]
[377672198,1754484643073,-460.0,0.00032298,120]
[377672199,1754484643082,-462.46579147,0.00032298,120]
[377672200,1754484643091,-460.0,0.00032298,120]
[377672201,1754484643101,-460.0,0.00032298,120]
[377672202,1754484643111,-460.0,0.00032298,120]
[377672203,1754484643120,-460.0,0.00032298,120]
[377672204,1754484643130,-460.0,0.00032298,120]
[377672205,1754484643140,-460.0,0.00032298,120]
[377672206,1754484643149,-460.0,0.00032298,120]
[377672207,1754484643158,-460.0,0.00032298,120]
[377672208,1754484643167,-460.0,0.00032298,120]
[377672209,1754484643177,-460.0,0.00032298,120]
[377672210,1754484643186,-460.0,0.00032298,120]
[377672211,1754484643195,-460.0,0.00032298,120]
[377672212,1754484643203,-460.0,0.00032298,120]
[377672213,1754484643212,-460.0,0.00032298,120]
[377672215,1754484643221,-484.39868453,0.00032298,120]
[377672216,1754484643231,-460.0,0.00032298,120]
[377672218,1754484643239,-460.0,0.00032298,120]
[377672220,1754484643248,-460.0,0.00032298,120]
[377672222,1754484643257,-460.0,0.00032298,120]
[377672224,1754484643266,-460.0,0.00032298,120]
[377672226,1754484643275,-460.0,0.00032298,120]
[377672228,1754484643284,-460.0,0.00032298,120]
[377672230,1754484643294,-460.0,0.00032298,120]
[377672232,1754484643303,-460.0,0.00032298,120]
[377672234,1754484643313,-596.9,0.00032298,120]
[377672236,1754484643324,-460.0,0.00032298,120]
[377672238,1754484643333,-460.0,0.00032298,120]
[377672239,1754484643343,-460.0,0.00032298,120]
[377672240,1754484643353,-340.0,0.00032298,120]
[377672241,1754484643362,-236.31651813,0.00032298,120]
[377672242,1754484643372,-460.0,0.00032298,120]
[377672243,1754484643381,-460.0,0.00032298,120]
[377672244,1754484643391,-460.0,0.00032298,120]
[377672245,1754484643399,-460.0,0.00032298,120]
[377672246,1754484643408,-460.0,0.00032298,120]
[377672247,1754484643417,-460.0,0.00032298,120]
[377672248,1754484643427,-460.0,0.00032298,120]
[377672249,1754484643437,-472.84,0.00032298,120]
[377672250,1754484643447,-460.0,0.00032298,120]
[377672251,1754484643456,-460.0,0.00032298,120]
[377672252,1754484643465,-460.0,0.00032298,120]
[377672253,1754484643474,-381.63,0.00032298,120]
[377672254,1754484643484,-460.0,0.00032298,120]
[377672255,1754484643494,-460.0,0.00032298,120]
[377672256,1754484643503,-460.0,0.00032298,120]
[377672257,1754484643513,-460.0,0.00032298,120]
[377672258,1754484643522,-460.0,0.00032298,120]
[377672259,1754484643531,-460.0,0.00032298,120]
[377672260,1754484643540,-460.0,0.00032298,120]
[377672261,1754484643647,-460.0,0.00032298,120]
[377672262,1754484643673,-460.0,0.00032298,120]
[377672263,1754484643683,-460.0,0.00032298,120]
[377672264,1754484643693,-460.0,0.00032298,120]
[377672265,1754484643705,-460.0,0.00032298,2]